fUSD/lending_fUSD_20241001
["ID","MTS","AMOUNT","RATE_DAILY","PERIOD"]
[339626954,1727768587448,500.0,0.00021999,120]
[339626955,1727768587759,500.0,0.00021999,120]
[339626957,1727768588070,500.0,0.00021999,120]
[339626958,1727768588357,500.0,0.00021999,120]
[339626960,1727768589005,500.0,0.00021999,120]
[339626961,1727768589970,500.0,0.00021999,120]
[339626962,1727768590308,500.0,0.00021999,120]
[339626963,1727768590557,500.0,0.00021999,120]
[339626964,1727768590824,500.0,0.00021999,120]
[339626965,1727768591080,500.0,0.00021999,120]
[339626967,1727768591371,500.0,0.00021999,120]
[339626968,1727768591633,500.0,0.00021999,120]
[339626970,1727768591932,265.03523209,0.00021999,120]
[339627013,1727768628946,500.0,0.00021999,120]
[339627014,1727768629230,500.0,0.00021999,120]
[339627015,1727768629507,500.0,0.00021999,120]
[339627017,1727768629777,500.0,0.00021999,120]
[339627018,1727768630188,500.0,0.00021999,120]
[339627019,1727768630316,500.0,0.00021999,120]
[339627020,1727768630567,500.0,0.00021999,120]
[339627021,1727768630811,500.0,0.00021999,120]
[339627023,1727768631089,500.0,0.00021999,120]
[339627024,1727768631357,500.0,0.00021999,120]
[339627026,1727768631641,500.0,0.00021999,120]
[339627027,1727768631955,500.0,0.00021999,120]
[339627028,1727768632255,500.0,0.00021999,120]
[339627029,1727768632524,500.0,0.00021999,120]
[339627030,1727768632832,500.0,0.00021999,120]
[339627036,1727768638316,500.0,0.00021999,120]
[339627037,1727768638622,500.0,0.00021999,120]
[339627039,1727768638883,500.0,0.00021999,120]
[339627040,1727768639130,500.0,0.00021999,120]
[339627042,1727768639417,500.0,0.00021999,120]
[339627043,1727768639713,500.0,0.00021999,120]
[339627045,1727768640168,500.0,0.00021999,120]
[339627046,1727768640428,500.0,0.00021999,120]
[339627047,1727768640710,500.0,0.00021999,120]
[339627048,1727768640967,500.0,0.00021999,120]
[339627049,1727768641222,526.34025766,0.00021999,120]
[339627102,1727768698921,508.30241912,0.00021999,120]
[339627105,1727768703963,150.0,9.888e-05,2]
[339627106,1727768704367,103.48,9.909e-05,2]
[339627107,1727768704393,46.52,9.909e-05,2]
[339627109,1727768704694,150.0,9.931e-05,2]
[339627110,1727768705034,150.0,9.952e-05,2]
[339627111,1727768705392,150.0,9.974e-05,2]
[339627113,1727768705700,150.0,9.995e-05,2]
[339627129,1727768721419,500.0,0.00021999,120]
[339627130,1727768722008,500.0,0.00021999,120]
[339627131,1727768722073,400.41998824,0.00021999,120]
[339627135,1727768723760,150.0,9.888e-05,2]
[339627136,1727768724060,500.0,0.00021999,120]
[339627138,1727768724316,309.60364757,0.00021999,120]
[339627154,1727768736890,150.0,9.888e-05,2]
[339627155,1727768737189,150.0,9.928e-05,2]
[339627156,1727768737505,150.0,9.969e-05,2]
[339627180,1727768756678,150.0,9.888e-05,2]
[339627186,1727768762256,150.0,9.888e-05,2]
[339627195,1727768769434,150.0,9.888e-05,2]
[339627218,1727768793318,500.0,0.00021999,120]
[339627219,1727768793637,500.0,0.00021999,120]
[339627220,1727768793883,500.0,0.00021999,120]
[339627221,1727768794145,583.35,0.00021999,120]
[339627237,1727768814994,500.0,0.00022,120]
[339627266,1727768843529,746.0,0.00022,120]
[339627273,1727768849612,150.0,0.00022,120]
[339627275,1727768850400,150.0,0.00022,120]
[339627276,1727768850796,150.0,0.00022,120]
[339627278,1727768851113,150.0,0.00022,120]
[339627279,1727768851423,150.0,0.00022,120]
[339627281,1727768852007,150.0,0.00022,120]
[339627282,1727768852320,150.0,0.00022,120]
[339627283,1727768852909,150.0,0.00022,120]
[339627284,1727768853256,150.0,0.00022,120]
[339627285,1727768854026,150.0,0.00022,120]
[339627286,1727768854162,150.0,0.00022,120]
[339627288,1727768854494,150.0,0.00022,120]
[339627290,1727768854911,150.0,0.00022,120]
[339627291,1727768855168,150.0,0.00022,120]
[339627292,1727768855501,150.0,0.00022,120]
[339627294,1727768855869,150.0,0.00022,120]
[339627295,1727768856263,150.0,0.00022,120]
[339627297,1727768857201,150.0,0.00022,120]
[339627299,1727768857543,150.0,0.00022,120]
[339627301,1727768857871,150.0,0.00022,120]
[339627303,1727768858226,150.0,0.00022,120]
[339627304,1727768858586,150.0,0.00022,120]
[339627305,1727768858967,150.0,0.00022,120]
[339627307,1727768859362,150.0,0.00022,120]
[339627310,1727768859741,150.0,0.00022,120]
[339627311,1727768860193,150.0,0.00022,120]
[339627313,1727768860762,150.0,0.00022,120]
[339627320,1727768868174,150.0,0.00022,120]
[339627322,1727768868820,150.0,0.00022,120]
[339627323,1727768869183,150.0,0.00022,120]
[339627325,1727768869586,150.0,0.00022,120]
[339627327,1727768869944,150.0,0.00022,120]
[339627330,1727768870325,150.0,0.00022,120]
[339627333,1727768870652,150.0,0.00022,120]
[339627334,1727768871018,150.0,0.00022,120]
[339627335,1727768871376,150.0,0.00022,120]
[339627342,1727768877179,150.0,0.00022,120]
[339627343,1727768877534,150.0,0.00022,120]
[339627344,1727768877920,150.0,0.00022,120]
[339627345,1727768878297,150.0,0.00022,120]
[339627366,1727768893223,150.0,0.00022,120]
[339627368,1727768893727,150.0,0.00022,120]
[339627370,1727768894026,150.0,0.00022,120]
[339627371,1727768894456,150.0,0.00022,120]
[339627396,1727768918809,500.0,0.00021999,120]
[339627398,1727768919056,500.0,0.00021999,120]
[339627400,1727768920584,500.0,0.00021999,120]
[339627401,1727768920878,500.0,0.00021999,120]
[339627402,1727768921147,155.76281687,0.00021999,120]
[339627475,1727768973597,150.0,9.591e-05,2]
[339627476,1727768973620,115.78,9.591e-05,2]
[339627492,1727768989545,150.0,9.594e-05,2]
[339627493,1727768989569,100.0,9.594e-05,2]
[339627509,1727768997331,744.0,0.00022,120]
[339627533,1727769014721,250.0,9.594e-05,2]
[339627541,1727769021200,500.0,0.00022,120]
[339627573,1727769034862,-150.0,0.0001001,2]
[339627574,1727769034872,-150.0,0.0001001,2]
[339627575,1727769034882,-150.0,0.00010017,2]
[339627576,1727769034891,-150.0,0.00010038,2]
[339627577,1727769034901,-150.0,0.0001005,2]
[339627578,1727769034910,-150.0,0.0001006,2]
[339627579,1727769034919,-600.0,0.00010068,2]
[339627580,1727769034929,-500.0,0.00010068,2]
[339627581,1727769034938,-150.0,0.00010082,2]
[339627582,1727769034951,-150.0,0.00010091,2]
[339627583,1727769034961,-150.0,0.00010103,2]
[339627584,1727769034970,-150.0,0.00010125,2]
[339627585,1727769034980,-150.99,0.00010125,2]
[339627586,1727769034989,-277.2,0.00010125,2]
[339627587,1727769034999,-150.0,0.00010132,2]
[339627588,1727769035009,-150.0,0.00010132,2]
[339627589,1727769035018,-150.0,0.00010146,2]
[339627590,1727769035028,-150.0,0.00010168,2]
[339627591,1727769035038,-150.0,0.00010173,2]
[339627592,1727769035046,-150.0,0.00010189,2]
[339627593,1727769035054,-150.0,0.00010211,2]
[339627594,1727769035063,-150.0,0.00010213,2]
[339627595,1727769035072,-150.0,0.00010232,2]
[339627596,1727769035081,-150.0,0.00010254,2]
[339627597,1727769035093,-150.0,0.00010254,2]
[339627598,1727769035103,-150.0,0.00010254,2]
[339627599,1727769035112,-300.0,0.00010272,2]
[339627600,1727769035122,-150.0,0.00010275,2]
[339627601,1727769035131,-150.0,0.00010295,2]
[339627602,1727769035140,-150.0,0.00010297,2]
[339627603,1727769035149,-150.0,0.00010319,2]
[339627604,1727769035159,-150.0,0.00010327,2]
[339627605,1727769035168,-277.57,0.00010327,2]
[339627606,1727769035177,-150.0,0.00010335,2]
[339627607,1727769035186,-134.92082418,0.0001034,2]
[339627608,1727769035202,-15.07917582,0.0001034,2]
[339627609,1727769035211,-150.0,0.00010362,2]
[339627610,1727769035220,-150.0,0.00010376,2]
[339627611,1727769035230,-150.0,0.00010376,2]
[339627612,1727769035239,-150.0,0.00010383,2]
[339627613,1727769035248,-150.0,0.00010405,2]
[339627614,1727769035257,-150.0,0.00010417,2]
[339627615,1727769035266,-150.0,0.00010426,2]
[339627616,1727769035276,-150.0,0.00010437,2]
[339627617,1727769035285,-150.0,0.00010448,2]
[339627618,1727769035295,-150.0,0.00010457,2]
[339627619,1727769035304,-150.0,0.00010469,2]
[339627620,1727769035313,-150.0,0.00010491,2]
[339627621,1727769035322,-150.0,0.00010498,2]
[339627622,1727769035331,-150.0,0.00010498,2]
[339627623,1727769035340,-150.0,0.00010512,2]
[339627624,1727769035350,-150.0,0.00010534,2]
[339627625,1727769035359,-150.0,0.00010539,2]
[339627626,1727769035368,-150.0,0.00010555,2]
[339627627,1727769035377,-150.0,0.00010577,2]
[339627628,1727769035386,-150.0,0.00010579,2]
[339627629,1727769035395,-150.0,0.00010599,2]
[339627630,1727769035405,-150.0,0.0001062,2]
[339627631,1727769035414,-150.0,0.0001062,2]
[339627632,1727769035423,-150.0,0.0001062,2]
[339627633,1727769035432,-150.0,0.00010642,2]
[339627634,1727769035441,-150.0,0.00010661,2]
[339627635,1727769035451,-150.0,0.00010663,2]
[339627636,1727769035460,-150.0,0.00010685,2]
[339627637,1727769035469,-150.0,0.00010701,2]
[339627638,1727769035478,-150.0,0.00010706,2]
[339627639,1727769035488,-150.0,0.00010728,2]
[339627640,1727769035496,-150.0,0.00010742,2]
[339627641,1727769035506,-150.0,0.00010742,2]
[339627642,1727769035515,-150.0,0.00010749,2]
[339627643,1727769035524,-150.0,0.00010771,2]
[339627644,1727769035533,-150.0,0.00010783,2]
[339627645,1727769035542,-265.78,0.0001079,2]
[339627646,1727769035552,-150.0,0.00010792,2]
[339627647,1727769035561,-21696.9967,0.000108,2]
[339627648,1727769035571,-3191.7325,0.000108,2]
[339627649,1727769035580,-150.0,0.00010814,2]
[339627650,1727769035589,-150.0,0.00010824,2]
[339627651,1727769035601,-150.0,0.00010836,2]
[339627652,1727769035611,-150.0,0.00010857,2]
[339627653,1727769035619,-150.0,0.00010864,2]
[339627654,1727769035630,-150.0,0.00010864,2]
[339627655,1727769035640,-150.0,0.00010879,2]
[339627656,1727769035649,-225.9495,0.000109,2]
[339627657,1727769035658,-2400.0,0.000109,2]
[339627658,1727769035667,-152.034,0.000109,2]
[339627659,1727769035678,-3184.5597,0.000109,2]
[339627660,1727769035688,-3810.4606,0.000109,2]
[339627661,1727769035697,-450.0,0.000109,2]
[339627662,1727769035706,-1136.44,0.000109,2]
[339627663,1727769035715,-497.2572,0.000109,2]
[339627664,1727769035725,-411.0,0.000109,2]
[339627665,1727769035735,-166.69228459,0.000109,2]
[339627666,1727769035744,-2899.01834272,0.000109,2]
[339627667,1727769035755,-3300.0,0.000109,2]
[339627668,1727769035767,-492.93445728,0.000109,2]
[339627669,1727769035775,-151.34010265,0.000109,2]
[339627670,1727769035784,-2427.21846681,0.000109,2]
[339627671,1727769035794,-6373.49300226,0.000109,2]
[339627672,1727769035805,-1228.21770133,0.000109,2]
[339627673,1727769035816,-4487.05001956,0.000109,2]
[339627682,1727769038232,-7956.33996705,0.000109,2]
[339627683,1727769038242,-150.0,0.000109,2]
[339627684,1727769038251,-150.0,0.00010905,2]
[339627685,1727769038260,-150.0,0.00010922,2]
[339627686,1727769038270,-150.0,0.00010943,2]
[339627687,1727769038280,-150.0,0.00010946,2]
[339627688,1727769038289,-3937.2,0.00010954,2]
[339627689,1727769038298,-158.85,0.00010959,2]
[339627690,1727769038308,-250.0,0.00010959,2]
[339627691,1727769038318,-150.0,0.00010965,2]
[339627692,1727769038327,-267.15378696,0.00010986,2]
[339627693,1727769038336,-150.0,0.00010986,2]
[339627694,1727769038346,-201.00000001,0.00010986,2]
[339627695,1727769038355,-150.8781928,0.00010986,2]
[339627696,1727769038365,-151.87916957,0.00010986,2]
[339627697,1727769038375,-23648.77,0.0001099,2]
[339627698,1727769038384,-1000.0,0.00010999,2]
[339627699,1727769038393,-500.0,0.00010999,2]
[339627700,1727769038403,-612.79902121,0.00010999,2]
[339627701,1727769038412,-646.31210359,0.00011,2]
[339627702,1727769038421,-129198.78100748,0.00011,2]
[339627703,1727769038430,-1683983.63772857,0.00011,2]
[339627716,1727769040225,-3708.2884282,0.00011,2]
[339627717,1727769040238,-339.24024756,0.00011,2]
[339627718,1727769040250,-266.98258965,0.00011,2]
[339627719,1727769040281,-9096.64373114,0.00011,2]
[339627720,1727769040293,-8947.21879473,0.00011,2]
[339627721,1727769040305,-8943.78386462,0.00011,2]
[339627722,1727769040317,-9077.54866152,0.00011,2]
[339627723,1727769040328,-8943.84023489,0.00011,2]
[339627746,1727769043019,-6293.81144094,0.00011,2]
[339627750,1727769043335,-154871.90813162,0.00011,2]
[339627753,1727769046014,-2587.69755451,0.00011,2]
[339627754,1727769046027,-37386.59598641,0.00011,2]
[339627755,1727769046067,-6555.17334851,0.00011,2]
[339627756,1727769046123,-641.51819745,0.00011,2]
[339627757,1727769046229,-2661.0,0.00011,2]
[339627758,1727769046283,-35336.06562397,0.00011,2]
[339627807,1727769068384,500.0,0.00022,120]
[339627818,1727769076897,8000.0,0.00021,120]
[339627895,1727769143986,500.0,0.00021999,120]
[339627896,1727769144287,500.0,0.00021999,120]
[339627897,1727769144567,500.0,0.00021999,120]
[339627898,1727769144857,500.0,0.00021999,120]
[339627899,1727769145137,500.0,0.00021999,120]
[339627901,1727769145404,500.0,0.00021999,120]
[339627902,1727769145684,500.0,0.00021999,120]
[339627904,1727769145946,500.0,0.00021999,120]
[339627905,1727769146218,500.0,0.00021999,120]
[339627906,1727769146492,505.99979539,0.00021999,120]
[339627943,1727769188953,323.151209,0.00022,120]
[339627949,1727769193148,337.712376,0.00022,120]
[339627961,1727769206942,150.0,8.712e-05,2]
[339627962,1727769206965,150.0,8.712e-05,2]
[339627963,1727769206986,150.0,8.712e-05,2]
[339627964,1727769207006,6.53,8.712e-05,2]
[339628166,1727769457344,500.0,0.00021999,120]
[339628168,1727769457620,500.0,0.00021999,120]
[339628169,1727769457930,500.0,0.00021999,120]
[339628170,1727769458196,525.08082832,0.00021999,120]
[339628212,1727769517704,500.0,0.00021999,120]
[339628213,1727769518099,500.0,0.00021999,120]
[339628214,1727769518363,500.0,0.00021999,120]
[339628215,1727769518639,500.0,0.00021999,120]
[339628216,1727769518944,500.0,0.00021999,120]
[339628218,1727769519267,500.0,0.00021999,120]
[339628219,1727769519877,500.0,0.00021999,120]
[339628220,1727769520135,500.0,0.00021999,120]
[339628221,1727769520418,500.0,0.00021999,120]
[339628222,1727769520820,500.0,0.00021999,120]
[339628223,1727769521093,500.0,0.00021999,120]
[339628224,1727769521392,500.0,0.00021999,120]
[339628226,1727769521677,500.0,0.00021999,120]
[339628227,1727769522028,500.0,0.00021999,120]
[339628230,1727769522307,500.0,0.00021999,120]
[339628231,1727769522602,500.0,0.00021999,120]
[339628232,1727769522899,500.0,0.00021999,120]
[339628233,1727769523158,500.0,0.00021999,120]
[339628234,1727769523773,500.0,0.00021999,120]
[339628235,1727769524187,549.08001309,0.00021999,120]
[339628240,1727769527440,500.0,0.00021999,120]
[339628241,1727769527706,500.0,0.00021999,120]
[339628242,1727769527974,500.0,0.00021999,120]
[339628243,1727769528242,500.0,0.00021999,120]
[339628244,1727769528641,310.24517023,0.00021999,120]
[339628251,1727769532397,248.04018665,0.00021999,120]
[339628260,1727769543719,150.0,9.968e-05,2]
[339628261,1727769543743,150.0,9.968e-05,2]
[339628262,1727769543765,150.0,9.968e-05,2]
[339628263,1727769543788,150.0,9.968e-05,2]
[339628264,1727769543809,150.0,9.968e-05,2]
[339628265,1727769543832,150.0,9.968e-05,2]
[339628266,1727769543853,150.0,9.968e-05,2]
[339628267,1727769543875,150.0,9.968e-05,2]
[339628268,1727769543897,125.42429904,9.968e-05,2]
[339628271,1727769545896,500.0,0.00021999,120]
[339628272,1727769546165,500.0,0.00021999,120]
[339628273,1727769546802,500.0,0.00021999,120]
[339628274,1727769547057,500.0,0.00021999,120]
[339628275,1727769547362,500.0,0.00021999,120]
[339628276,1727769547690,431.14201041,0.00021999,120]
[339628277,1727769547730,500.0,0.00021999,120]
[339628279,1727769548000,500.0,0.00021999,120]
[339628280,1727769548285,500.0,0.00021999,120]
[339628281,1727769548569,500.0,0.00021999,120]
[339628283,1727769548838,500.0,0.00021999,120]
[339628284,1727769549091,500.0,0.00021999,120]
[339628285,1727769549348,500.0,0.00021999,120]
[339628286,1727769549630,584.18974311,0.00021999,120]
[339628290,1727769556828,573.24,0.00021999,120]
[339628291,1727769557111,573.24,0.00021999,120]
[339628292,1727769557393,573.24,0.00021999,120]
[339628295,1727769557661,573.24,0.00021999,120]
[339628296,1727769557913,573.24,0.00021999,120]
[339628297,1727769558415,573.24,0.00021999,120]
[339628298,1727769558750,573.24,0.00021999,120]
[339628299,1727769559017,573.24,0.00021999,120]
[339628300,1727769559659,573.24,0.00021999,120]
[339628301,1727769559966,573.24,0.00021999,120]
[339628302,1727769560594,573.24,0.00021999,120]
[339628303,1727769560920,573.24,0.00021999,120]
[339628304,1727769561504,573.24,0.00021999,120]
[339628305,1727769561743,500.0,0.00021999,120]
[339628307,1727769561817,573.24,0.00021999,120]
[339628308,1727769562006,500.0,0.00021999,120]
[339628309,1727769562108,573.24,0.00021999,120]
[339628310,1727769562331,500.0,0.00021999,120]
[339628311,1727769562434,573.24,0.00021999,120]
[339628312,1727769562617,500.0,0.00021999,120]
[339628313,1727769562708,573.24,0.00021999,120]
[339628314,1727769562935,500.0,0.00021999,120]
[339628315,1727769563031,573.24,0.00021999,120]
[339628316,1727769563198,500.0,0.00021999,120]
[339628317,1727769563292,573.24,0.00021999,120]
[339628318,1727769563471,500.0,0.00021999,120]
[339628319,1727769563549,573.24,0.00021999,120]
[339628320,1727769563753,500.0,0.00021999,120]
[339628321,1727769563839,573.24,0.00021999,120]
[339628322,1727769564015,500.0,0.00021999,120]
[339628323,1727769564091,573.24,0.00021999,120]
[339628324,1727769564283,500.0,0.00021999,120]
[339628325,1727769564369,573.24,0.00021999,120]
[339628326,1727769564541,500.0,0.00021999,120]
[339628328,1727769564812,573.4691561,0.00021999,120]
[339628329,1727769564854,237.13279794,0.00021999,120]
[339628333,1727769569268,500.0,0.00021999,120]
[339628334,1727769569529,500.0,0.00021999,120]
[339628335,1727769569787,500.0,0.00021999,120]
[339628337,1727769570056,500.0,0.00021999,120]
[339628338,1727769570887,532.26396982,0.00021999,120]
[339628343,1727769576099,168.98,9.589e-05,2]
[339628347,1727769581219,551.18,0.00021999,120]
[339628349,1727769581561,551.18,0.00021999,120]
[339628350,1727769581874,551.18,0.00021999,120]
[339628351,1727769582141,551.18,0.00021999,120]
[339628352,1727769582426,551.18,0.00021999,120]
[339628353,1727769582624,150.0,0.0001,3]
[339628354,1727769582646,150.0,0.0001,3]
[339628355,1727769582667,150.0,0.0001,3]
[339628356,1727769582687,150.0,0.0001,3]
[339628357,1727769582708,150.0,0.0001,3]
[339628358,1727769582730,150.0,0.0001,3]
[339628359,1727769582768,551.18,0.00021999,120]
[339628360,1727769582943,551.18,0.00021999,120]
[339628361,1727769583206,551.18,0.00021999,120]
[339628362,1727769583540,551.18,0.00021999,120]
[339628363,1727769583875,551.18,0.00021999,120]
[339628364,1727769584209,551.18,0.00021999,120]
[339628365,1727769584261,500.0,0.00021999,120]
[339628366,1727769584498,551.18,0.00021999,120]
[339628367,1727769584535,500.0,0.00021999,120]
[339628368,1727769584752,551.18,0.00021999,120]
[339628369,1727769584791,500.0,0.00021999,120]
[339628370,1727769585064,500.0,0.00021999,120]
[339628371,1727769585103,551.18,0.00021999,120]
[339628373,1727769585331,500.0,0.00021999,120]
[339628374,1727769585370,551.18,0.00021999,120]
[339628375,1727769585601,551.18,0.00021999,120]
[339628376,1727769585637,500.0,0.00021999,120]
[339628377,1727769585881,500.0,0.00021999,120]
[339628378,1727769585917,551.18,0.00021999,120]
[339628379,1727769586145,551.18,0.00021999,120]
[339628381,1727769586187,500.0,0.00021999,120]
[339628382,1727769586401,551.18,0.00021999,120]
[339628383,1727769586440,500.0,0.00021999,120]
[339628384,1727769586665,551.18,0.00021999,120]
[339628385,1727769586701,500.0,0.00021999,120]
[339628386,1727769586937,551.18,0.00021999,120]
[339628387,1727769586995,500.0,0.00021999,120]
[339628388,1727769587235,551.18,0.00021999,120]
[339628390,1727769587358,500.0,0.00021999,120]
[339628391,1727769587554,551.18,0.00021999,120]
[339628392,1727769587617,481.80040293,0.00021999,120]
[339628393,1727769588155,551.32796444,0.00021999,120]
[339628403,1727769609261,500.0,0.00021999,120]
[339628404,1727769609539,500.0,0.00021999,120]
[339628405,1727769609928,500.0,0.00021999,120]
[339628406,1727769610207,500.0,0.00021999,120]
[339628407,1727769610498,500.0,0.00021999,120]
[339628408,1727769610814,500.0,0.00021999,120]
[339628409,1727769611116,500.0,0.00021999,120]
[339628410,1727769611463,502.91729064,0.00021999,120]
[339628411,1727769612256,500.0,0.00021999,120]
[339628412,1727769612733,500.0,0.00021999,120]
[339628413,1727769612849,500.0,0.00021999,120]
[339628414,1727769613125,500.0,0.00021999,120]
[339628416,1727769613398,500.0,0.00021999,120]
[339628418,1727769613669,500.0,0.00021999,120]
[339628420,1727769613986,500.0,0.00021999,120]
[339628421,1727769614288,500.0,0.00021999,120]
[339628422,1727769614657,500.0,0.00021999,120]
[339628423,1727769614951,595.01210418,0.00021999,120]
[339628424,1727769615131,2000.0,0.00015,30]
[339628426,1727769617488,500.0,0.00021999,120]
[339628427,1727769617770,500.0,0.00021999,120]
[339628428,1727769618084,500.0,0.00021999,120]
[339628430,1727769618363,500.0,0.00021999,120]
[339628431,1727769618630,500.0,0.00021999,120]
[339628432,1727769619465,500.0,0.00021999,120]
[339628433,1727769619892,500.0,0.00021999,120]
[339628434,1727769620289,500.0,0.00021999,120]
[339628435,1727769620618,500.0,0.00021999,120]
[339628436,1727769620897,500.0,0.00021999,120]
[339628439,1727769621165,500.0,0.00021999,120]
[339628440,1727769621461,500.0,0.00021999,120]
[339628443,1727769622296,363.352527,0.00021999,120]
[339628446,1727769624723,293.19707924,8.972e-05,2]
[339628447,1727769624745,206.80292076,8.972e-05,2]
[339628448,1727769624942,500.0,0.00021999,120]
[339628449,1727769625218,500.0,0.00021999,120]
[339628450,1727769625512,500.0,0.00021999,120]
[339628452,1727769625911,500.0,0.00021999,120]
[339628454,1727769626327,500.0,0.00021999,120]
[339628455,1727769626444,500.0,0.00021999,120]
[339628456,1727769626733,500.0,0.00021999,120]
[339628457,1727769627070,324.75887517,0.00021999,120]
[339628463,1727769631029,500.0,0.00021999,120]
[339628466,1727769632204,500.0,0.00021999,120]
[339628467,1727769632480,500.0,0.00021999,120]
[339628468,1727769632844,500.0,0.00021999,120]
[339628469,1727769633131,500.0,0.00021999,120]
[339628470,1727769633390,500.0,0.00021999,120]
[339628471,1727769633647,500.0,0.00021999,120]
[339628472,1727769633904,500.0,0.00021999,120]
[339628473,1727769634164,500.0,0.00021999,120]
[339628474,1727769634440,500.0,0.00021999,120]
[339628476,1727769634710,500.0,0.00021999,120]
[339628478,1727769634972,500.0,0.00021999,120]
[339628479,1727769635244,500.0,0.00021999,120]
[339628481,1727769635283,500.0,0.00021999,120]
[339628483,1727769635514,500.0,0.00021999,120]
[339628484,1727769635554,504.87104723,0.00021999,120]
[339628485,1727769635797,500.0,0.00021999,120]
[339628487,1727769636197,517.0950199,0.00021999,120]
[339628488,1727769636693,250.0,9.893e-05,2]
[339628491,1727769638452,500.0,0.00021999,120]
[339628493,1727769638722,500.0,0.00021999,120]
[339628494,1727769639012,500.0,0.00021999,120]
[339628497,1727769639314,500.0,0.00021999,120]
[339628498,1727769639739,500.0,0.00021999,120]
[339628499,1727769640065,500.0,0.00021999,120]
[339628500,1727769640339,500.0,0.00021999,120]
[339628501,1727769640657,500.0,0.00021999,120]
[339628502,1727769640999,500.0,0.00021999,120]
[339628503,1727769641274,500.0,0.00021999,120]
[339628504,1727769641541,500.0,0.00021999,120]
[339628506,1727769641853,500.0,0.00021999,120]
[339628509,1727769642127,577.26092729,0.00021999,120]
[339628513,1727769645848,3015.56,9.999e-05,2]
[339628515,1727769647163,500.0,0.00021999,120]
[339628516,1727769647444,500.0,0.00021999,120]
[339628519,1727769647686,500.0,0.00021999,120]
[339628520,1727769647820,500.0,0.00021999,120]
[339628521,1727769647952,500.0,0.00021999,120]
[339628522,1727769648134,500.0,0.00021999,120]
[339628523,1727769648216,500.0,0.00021999,120]
[339628524,1727769648406,500.0,0.00021999,120]
[339628526,1727769648718,500.0,0.00021999,120]